fUST/lending_fUST_20240424
["ID","MTS","AMOUNT","RATE_DAILY","PERIOD"]
[323364806,1713928233053,-167.074933,0.00016338,2]
[323364807,1713928233062,-558.461577,0.00016338,2]
[323364808,1713928233071,-558.461577,0.00016338,2]
[323364809,1713928233082,-522.436517,0.00016338,2]
[323364810,1713928233093,-522.436517,0.00016338,2]
[323364811,1713928233103,-241.666875,0.00016338,2]
[323364812,1713928233112,-241.666875,0.00016338,2]
[323364813,1713928233122,-13271.50829839,0.00016338,2]
[323364814,1713928233136,-1072.96314048,0.00016338,2]
[323364948,1713928240330,-1723.26729267,0.00016338,2]
[323364987,1713928243280,-898.39954919,0.00016338,2]
[323365077,1713929438278,-1575.31939472,0.00014074,2]
[323365079,1713929438287,-300.0,0.00014074,2]
[323365081,1713929438296,-300.0,0.00014074,2]
[323365082,1713929438305,-14345.53213824,0.00014075,2]
[323365190,1713930565087,-1575.31939472,0.00014712,2]
[323365191,1713930565107,-282.797723,0.00014713,2]
[323365192,1713930565128,-300.0,0.00014728,2]
[323365356,1713930660580,292.0351272,0.00014728,2]
[323365389,1713931536739,-154.81422293,0.00013783,2]
[323365390,1713931536761,-154.81422293,0.00013784,2]
[323365391,1713931536782,-1575.31939472,0.00013784,2]
[323365392,1713931536802,-282.7977249,0.00013785,2]
[323365393,1713931536825,-300.0,0.00014588,2]
[323365394,1713931536847,-300.0,0.00014588,2]
[323365395,1713931536867,-20000.037401,0.00014589,2]
[323365396,1713931536891,-11411.1683008,0.0001469,2]
[323365397,1713931536911,-1678.96711435,0.00014723,2]
[323365398,1713931536936,-16097.84697828,0.00014728,2]
[323365399,1713931553098,-3140.10101518,0.00014728,2]
[323365400,1713931553118,-938.69803003,0.00015,2]
[323365401,1713931553139,-1611.20926985,0.00015,2]
[323365402,1713931640116,-300.0,0.00014999,2]
[323365403,1713931640139,-300.0,0.00014999,2]
[323365404,1713931640160,-157.06659545,0.00015,2]
[323365405,1713931640181,-154.81422293,0.00015,2]
[323365406,1713931640201,-500.0,0.00015,2]
[323365407,1713931640222,-312.66661178,0.00015181,2]
[323365408,1713931640243,-2776.29930889,0.00015182,2]
[323365409,1713931640263,-1676.10589151,0.00015183,2]
[323365410,1713931640284,-154.81422293,0.00015183,2]
[323365411,1713931640304,-628.29006624,0.00015183,2]
[323365412,1713931640324,-2099.79903615,0.00015184,2]
[323365413,1713931640345,-620.17895264,0.00015185,2]
[323365414,1713931640365,-938.69803003,0.00015942,2]
[323365415,1713931640385,-1575.31939472,0.00015943,2]
[323365416,1713931640405,-620.00894763,0.00015944,2]
[323365417,1713931640425,-306.0,0.00016,2]
[323365418,1713931640446,-153.0,0.00016,2]
[323365419,1713931640466,-153.0,0.00016,2]
[323365420,1713931640487,-153.0,0.00016,2]
[323365421,1713931640507,-153.0,0.00016,2]
[323365422,1713931640527,-153.0,0.00016,2]
[323365423,1713931640548,-153.0,0.00016,2]
[323365424,1713931640569,-203.583665,0.00016,2]
[323365425,1713931640590,-5000.0,0.00016097,2]
[323365426,1713931640612,-1455.25148055,0.00016098,2]
[323365427,1713931640634,-306.0,0.000161,2]
[323365428,1713931640655,-153.0,0.000161,2]
[323365429,1713931640677,-153.0,0.000161,2]
[323365430,1713931640699,-153.0,0.000161,2]
[323365431,1713931640721,-1455.25148051,0.00016124,2]
[323365432,1713931640743,-1455.25148051,0.00016149,2]
[323365433,1713931640765,-153.43131252,0.00016174,2]
[323365434,1713931640787,-1455.25148051,0.00016175,2]
[323365435,1713931640809,-161.50555538,0.00016197,2]
[323365436,1713931640830,-260.01824474,0.00016197,2]
[323365437,1713931640851,-90926.13797938,0.00016198,2]
[323365438,1713931654085,-153.43131253,0.00016174,2]
[323365439,1713931654105,-938.69803003,0.00016197,2]
[323365440,1713931654128,-2012.62219802,0.00016197,2]
[323365441,1713931654147,-628.29006624,0.00016197,2]
[323365442,1713931654169,-143627.12408691,0.00016198,2]
[323365605,1713931838709,-1575.31939472,0.00014726,2]
[323365606,1713931838718,-1547.8225568,0.00014727,2]
[323365608,1713931838727,-300.0,0.00014999,2]
[323365609,1713931838736,-300.0,0.00014999,2]
[323365610,1713931838745,-2099.79903615,0.00015,2]
[323365611,1713931838754,-938.69803003,0.00015,2]
[323365612,1713931838763,-154.81422293,0.00015,2]
[323365613,1713931838771,-2776.29930889,0.00015,2]
[323365615,1713931838780,-312.66661178,0.00015159,2]
[323365616,1713931838795,-154.81422293,0.0001516,2]
[323365617,1713931838803,-157.06659545,0.0001516,2]
[323365618,1713931838812,-1676.10589151,0.00015161,2]
[323365619,1713931838821,-480.3732488,0.00015162,2]
[323365620,1713931838830,-927.87368973,0.00015386,2]
[323365621,1713931838838,-44444.0,0.00016098,2]
[323365622,1713931838847,-153.43131253,0.00016174,2]
[323365623,1713931838856,-682.88451301,0.0001618,2]
[323365624,1713931838865,-175485.38097991,0.00016198,2]
[323365625,1713931838874,-217.500188,0.00016198,2]
[323365626,1713931838882,-217.500188,0.00016198,2]
[323365627,1713931838892,-156.029954,0.00016198,2]
[323365628,1713931838902,-151.586815,0.00016198,2]
[323365629,1713931838910,-168.921941,0.00016198,2]
[323365630,1713931838922,-168.921941,0.00016198,2]
[323365631,1713931838930,-1147.317073,0.00016198,2]
[323365632,1713931838939,-1147.317073,0.00016198,2]
[323365633,1713931838948,-223.835707,0.00016198,2]
[323365634,1713931838956,-219.651066,0.00016198,2]
[323365635,1713931838965,-219.651066,0.00016198,2]
[323365636,1713931838974,-1625.0,0.00016198,2]
[323365638,1713931838985,-1625.0,0.00016198,2]
[323365639,1713931838994,-1625.0,0.00016198,2]
[323365640,1713931839002,-1625.0,0.00016198,2]
[323365641,1713931839012,-4922.42401,0.00016198,2]
[323365643,1713931839024,-4922.42401,0.00016198,2]
[323365645,1713931839033,-500.0,0.00016198,2]
[323365648,1713931839043,-500.0,0.00016198,2]
[323365650,1713931839052,-500.0,0.00016198,2]
[323365652,1713931839062,-500.0,0.00016198,2]
[323365654,1713931839071,-500.0,0.00016198,2]
[323365656,1713931839080,-500.0,0.00016198,2]
[323365658,1713931839089,-500.0,0.00016198,2]
[323365660,1713931839099,-500.0,0.00016198,2]
[323365661,1713931839108,-500.0,0.00016198,2]
[323365664,1713931839117,-500.0,0.00016198,2]
[323365665,1713931839126,-500.0,0.00016198,2]
[323365667,1713931839135,-500.0,0.00016198,2]
[323365669,1713931839145,-275.37214622,0.00016198,2]
[323365671,1713931839154,-648.964305,0.00016198,2]
[323365673,1713931839163,-648.964305,0.00016198,2]
[323365675,1713931839171,-648.964305,0.00016198,2]
[323365676,1713931839180,-648.964305,0.00016198,2]
[323365677,1713931839189,-221.89226198,0.00016198,2]
[323365679,1713931839198,-217.500188,0.00016199,2]
[323365680,1713931839208,-217.500188,0.00016199,2]
[323365681,1713931839217,-168.921941,0.00016199,2]
[323365682,1713931839226,-168.921941,0.00016199,2]
[323365683,1713931839235,-1147.317073,0.00016199,2]
[323365684,1713931839406,-1147.317073,0.00016199,2]
[323365685,1713931839415,-219.651066,0.00016199,2]
[323365686,1713931839425,-219.651066,0.00016199,2]
[323365687,1713931839434,-1625.0,0.00016199,2]
[323365688,1713931839443,-1625.0,0.00016199,2]
[323365689,1713931839452,-4922.42401,0.00016199,2]
[323365690,1713931839461,-4922.42401,0.00016199,2]
[323365691,1713931839471,-648.964305,0.00016199,2]
[323365692,1713931839480,-648.964305,0.00016199,2]
[323365693,1713931839490,-151.0,0.00016199,2]
[323365694,1713931839499,-151.0,0.00016199,2]
[323365695,1713931839508,-151.0,0.00016199,2]
[323365696,1713931839518,-151.0,0.00016199,2]
[323365697,1713931839526,-191.748246,0.00016199,2]
[323365698,1713931839536,-191.748246,0.00016199,2]
[323365699,1713931839546,-191.748246,0.00016199,2]
[323365700,1713931839555,-191.748246,0.00016199,2]
[323365701,1713931839565,-151.0,0.00016199,2]
[323365702,1713931839575,-151.0,0.00016199,2]
[323365703,1713931839584,-1455.25148051,0.000162,2]
[323365704,1713931839593,-1625.0,0.000162,2]
[323365705,1713931839603,-1625.0,0.000162,2]
[323365706,1713931839612,-151.0,0.000162,2]
[323365707,1713931839621,-151.0,0.000162,2]
[323365708,1713931839630,-648.964305,0.000162,2]
[323365709,1713931839639,-648.964305,0.000162,2]
[323365710,1713931839648,-151.0,0.000162,2]
[323365711,1713931839658,-151.0,0.000162,2]
[323365712,1713931839667,-191.748246,0.000162,2]
[323365713,1713931839676,-191.748246,0.000162,2]
[323365714,1713931839685,-151.0,0.000162,2]
[323365715,1713931839695,-153.0,0.000162,2]
[323365716,1713931839704,-203.583665,0.000162,2]
[323365717,1713931839713,-143923.06217955,0.000163,2]
[323365718,1713931839722,-151.0,0.000163,2]
[323365719,1713931839731,-162.170834,0.000163,2]
[323365720,1713931839740,-162.170834,0.000163,2]
[323365721,1713931839749,-151.0,0.000163,2]
[323365722,1713931839758,-151.0,0.000163,2]
[323365723,1713931839767,-151.0,0.000163,2]
[323365724,1713931839776,-151.0,0.000163,2]
[323365725,1713931839787,-151.0,0.000163,2]
[323365726,1713931839796,-505.527411,0.000163,2]
[323365727,1713931839806,-505.527411,0.000163,2]
[323365728,1713931839815,-505.527411,0.000163,2]
[323365729,1713931839824,-505.527411,0.000163,2]
[323365730,1713931839833,-151.0,0.000163,2]
[323365731,1713931839843,-151.0,0.000163,2]
[323365732,1713931839852,-225.716103,0.000163,2]
[323365733,1713931839861,-225.716103,0.000163,2]
[323365734,1713931839870,-225.716103,0.000163,2]
[323365735,1713931839879,-225.716103,0.000163,2]
[323365736,1713931839888,-225.716103,0.000163,2]
[323365737,1713931839897,-225.716103,0.000163,2]
[323365738,1713931839906,-502.615419,0.000163,2]
[323365739,1713931839915,-502.615419,0.000163,2]
[323365740,1713931839925,-502.615419,0.000163,2]
[323365741,1713931839934,-502.615419,0.000163,2]
[323365742,1713931839943,-502.615419,0.000163,2]
[323365743,1713931839951,-502.615419,0.000163,2]
[323365744,1713931839961,-470.192865,0.000163,2]
[323365745,1713931839971,-470.192865,0.000163,2]
[323365746,1713931839980,-470.192865,0.000163,2]
[323365747,1713931839989,-470.192865,0.000163,2]
[323365748,1713931839998,-450.565195,0.000163,2]
[323365749,1713931840007,-450.565195,0.000163,2]
[323365750,1713931840018,-450.565195,0.000163,2]
[323365751,1713931840028,-450.565195,0.000163,2]
[323365752,1713931840036,-450.565195,0.000163,2]
[323365753,1713931840046,-450.565195,0.000163,2]
[323365754,1713931840056,-151.0,0.000163,2]
[323365755,1713931840066,-151.0,0.000163,2]
[323365756,1713931840075,-151.0,0.000163,2]
[323365757,1713931840086,-151.0,0.000163,2]
[323365758,1713931840097,-151.0,0.000163,2]
[323365759,1713931840105,-151.0,0.000163,2]
[323365760,1713931840115,-151.0,0.000163,2]
[323365762,1713931840125,-151.0,0.000163,2]
[323365763,1713931840135,-895.902669,0.000163,2]
[323365764,1713931840144,-895.902669,0.000163,2]
[323365765,1713931840154,-895.902669,0.000163,2]
[323365766,1713931840163,-895.902669,0.000163,2]
[323365768,1713931840172,-895.902669,0.000163,2]
[323365770,1713931840181,-895.902669,0.000163,2]
[323365772,1713931840192,-895.902669,0.000163,2]
[323365774,1713931840201,-895.902669,0.000163,2]
[323365776,1713931840210,-217.500188,0.000163,2]
[323365777,1713931840219,-217.500188,0.000163,2]
[323365779,1713931840228,-217.500188,0.000163,2]
[323365780,1713931840238,-217.500188,0.000163,2]
[323365781,1713931840247,-217.500188,0.000163,2]
[323365782,1713931840257,-217.500188,0.000163,2]
[323365784,1713931840266,-217.500188,0.000163,2]
[323365786,1713931840275,-217.500188,0.000163,2]
[323365788,1713931840283,-168.921941,0.000163,2]
[323365790,1713931840292,-168.921941,0.000163,2]
[323365791,1713931840301,-168.921941,0.000163,2]
[323365792,1713931840312,-168.921941,0.000163,2]
[323365793,1713931840322,-168.921941,0.000163,2]
[323365794,1713931840331,-168.921941,0.000163,2]
[323365795,1713931840340,-168.921941,0.000163,2]
[323365796,1713931840350,-168.921941,0.000163,2]
[323365797,1713931840360,-1147.317073,0.000163,2]
[323365798,1713931840369,-1147.317073,0.000163,2]
[323365799,1713931840378,-1147.317073,0.000163,2]
[323365800,1713931840387,-1147.317073,0.000163,2]
[323365801,1713931840397,-1147.317073,0.000163,2]
[323365802,1713931840408,-1147.317073,0.000163,2]
[323365803,1713931840417,-1147.317073,0.000163,2]
[323365804,1713931840427,-1147.317073,0.000163,2]
[323365805,1713931840436,-1147.317073,0.000163,2]
[323365806,1713931840446,-1147.317073,0.000163,2]
[323365807,1713931840455,-219.651066,0.000163,2]
[323365808,1713931840465,-219.651066,0.000163,2]
[323365809,1713931840474,-219.651066,0.000163,2]
[323365810,1713931840484,-219.651066,0.000163,2]
[323365811,1713931840493,-219.651066,0.000163,2]
[323365812,1713931840503,-219.651066,0.000163,2]
[323365813,1713931840513,-219.651066,0.000163,2]
[323365814,1713931840523,-219.651066,0.000163,2]
[323365815,1713931840533,-219.651066,0.000163,2]
[323365816,1713931840543,-219.651066,0.000163,2]
[323365817,1713931840552,-771.31399,0.000163,2]
[323365818,1713931840562,-771.31399,0.000163,2]
[323365819,1713931840572,-771.31399,0.000163,2]
[323365820,1713931840581,-771.31399,0.000163,2]
[323365821,1713931840590,-771.31399,0.000163,2]
[323365822,1713931840600,-771.313992,0.000163,2]
[323365823,1713931840609,-1625.0,0.000163,2]
[323365824,1713931840619,-1625.0,0.000163,2]
[323365825,1713931840629,-1625.0,0.000163,2]
[323365826,1713931840639,-1625.0,0.000163,2]
[323365827,1713931840649,-1625.0,0.000163,2]
[323365828,1713931840658,-1625.0,0.000163,2]
[323365829,1713931840667,-1625.0,0.000163,2]
[323365830,1713931840677,-1625.0,0.000163,2]
[323365831,1713931840686,-1625.0,0.000163,2]
[323365832,1713931840696,-1625.0,0.000163,2]
[323365833,1713931840705,-1625.0,0.000163,2]
[323365834,1713931840714,-1625.0,0.000163,2]
[323365835,1713931840723,-4922.42401,0.000163,2]
[323365836,1713931840733,-4922.42401,0.000163,2]
[323365837,1713931840742,-4922.42401,0.000163,2]
[323365838,1713931840751,-4922.42401,0.000163,2]
[323365839,1713931840760,-4922.42401,0.000163,2]
[323365840,1713931840769,-4922.42401,0.000163,2]
[323365841,1713931840778,-4922.42401,0.000163,2]
[323365842,1713931840788,-4922.42401,0.000163,2]
[323365843,1713931840797,-4922.42401,0.000163,2]
[323365844,1713931840806,-4922.42401,0.000163,2]
[323365845,1713931840815,-4922.42401,0.000163,2]
[323365846,1713931840825,-4922.42401,0.000163,2]
[323365847,1713931840834,-4922.42401,0.000163,2]
[323365848,1713931840843,-4922.42401,0.000163,2]
[323365849,1713931840852,-4922.42401,0.000163,2]
[323365850,1713931840861,-4922.42402,0.000163,2]
[323365851,1713931840871,-156.220205,0.000163,2]
[323365852,1713931840880,-153.0,0.000163,2]
[323365853,1713931840889,-153.0,0.000163,2]
[323365854,1713931840900,-151.0,0.000163,2]
[323365855,1713931840909,-151.0,0.000163,2]
[323365856,1713931840918,-151.0,0.000163,2]
[323365857,1713931840927,-151.0,0.000163,2]
[323365858,1713931840937,-151.0,0.000163,2]
[323365859,1713931840946,-151.0,0.000163,2]
[323365860,1713931840955,-151.0,0.000163,2]
[323365861,1713931840965,-648.964305,0.000163,2]
[323365862,1713931840974,-648.964305,0.000163,2]
[323365863,1713931840983,-648.964305,0.000163,2]
[323365864,1713931840993,-648.964305,0.000163,2]
[323365865,1713931841002,-648.964305,0.000163,2]
[323365866,1713931841012,-648.964305,0.000163,2]
[323365867,1713931841023,-648.964305,0.000163,2]
[323365868,1713931841033,-648.964305,0.000163,2]
[323365869,1713931841042,-648.964305,0.000163,2]
[323365870,1713931841051,-648.964305,0.000163,2]
[323365871,1713931841062,-648.964305,0.000163,2]
[323365872,1713931841071,-648.964298,0.000163,2]
[323365873,1713931841081,-151.0,0.000163,2]
[323365874,1713931841093,-151.0,0.000163,2]
[323365875,1713931841103,-151.0,0.000163,2]
[323365876,1713931841112,-151.0,0.000163,2]
[323365877,1713931841121,-151.0,0.000163,2]
[323365878,1713931841131,-151.0,0.000163,2]
[323365879,1713931841140,-151.0,0.000163,2]
[323365880,1713931841155,-151.0,0.000163,2]
[323365881,1713931841165,-219.165401,0.000163,2]
[323365882,1713931841175,-191.748246,0.000163,2]
[323365883,1713931841184,-191.748246,0.000163,2]
[323365884,1713931841194,-191.748246,0.000163,2]
[323365885,1713931841204,-191.748246,0.000163,2]
[323365886,1713931841214,-191.748246,0.000163,2]
[323365887,1713931841223,-191.748246,0.000163,2]
[323365888,1713931841233,-191.748246,0.000163,2]
[323365889,1713931841243,-191.748246,0.000163,2]
[323365890,1713931841253,-151.0,0.000163,2]
[323365891,1713931841262,-191.748246,0.000163,2]
[323365892,1713931841272,-151.0,0.000163,2]
[323365893,1713931841281,-191.748246,0.000163,2]
[323365894,1713931841290,-151.0,0.000163,2]
[323365895,1713931841299,-191.748246,0.000163,2]
[323365896,1713931841309,-151.0,0.000163,2]
[323365897,1713931841318,-153.96791,0.000163,2]
[323365898,1713931841327,-191.748246,0.000163,2]
[323365899,1713931841337,-191.748246,0.000163,2]
[323365900,1713931841347,-191.748248,0.000163,2]
[323365901,1713931841357,-151.0,0.000163,2]
[323365902,1713931841366,-151.0,0.000163,2]
[323365903,1713931841376,-151.0,0.000163,2]
[323365904,1713931841386,-158.485336,0.000163,2]
[323365905,1713931841398,-153.0,0.000163,2]
[323365906,1713931841407,-151.0,0.000163,2]
[323365907,1713931841417,-151.0,0.000163,2]
[323365908,1713931841426,-226.153105,0.000163,2]
[323365909,1713931841436,-3441.040687,0.000163,2]
[323365910,1713931841446,-3441.040687,0.000163,2]
[323365911,1713931841455,-3441.040687,0.000163,2]
[323365912,1713931841465,-3441.040687,0.000163,2]
[323365913,1713931841477,-3441.040687,0.000163,2]
[323365914,1713931841487,-3441.040687,0.000163,2]
[323365915,1713931841496,-3441.040687,0.000163,2]
[323365916,1713931841505,-3441.040687,0.000163,2]
[323365917,1713931841515,-3441.040687,0.000163,2]
[323365918,1713931841524,-3441.040687,0.000163,2]
[323365919,1713931841533,-3441.040687,0.000163,2]
[323365920,1713931841543,-3441.040687,0.000163,2]
[323365921,1713931841552,-220.372281,0.000163,2]
[323365922,1713931841562,-3441.040687,0.000163,2]
[323365923,1713931841571,-220.372281,0.000163,2]
[323365924,1713931841581,-3441.040687,0.000163,2]
[323365925,1713931841590,-220.372281,0.000163,2]
[323365926,1713931841600,-220.372281,0.000163,2]
[323365927,1713931841609,-151.0,0.000163,2]
[323365928,1713931841619,-220.372281,0.000163,2]
[323365929,1713931841628,-220.372281,0.000163,2]
[323365930,1713931841637,-220.372281,0.000163,2]
[323365931,1713931841649,-151.0,0.000163,2]
[323365932,1713931841658,-151.0,0.000163,2]
[323365933,1713931841667,-151.0,0.000163,2]
[323365934,1713931841676,-151.0,0.000163,2]
[323365935,1713931841686,-151.0,0.000163,2]
[323365936,1713931841695,-151.0,0.000163,2]
[323365937,1713931841704,-220.372281,0.000163,2]
[323365938,1713931841714,-220.372281,0.000163,2]
[323365939,1713931841723,-220.372281,0.000163,2]
[323365940,1713931841732,-220.372281,0.000163,2]
[323365941,1713931841741,-220.372281,0.000163,2]
[323365942,1713931841750,-220.372281,0.000163,2]
[323365943,1713931841759,-220.372281,0.000163,2]
[323365944,1713931841768,-151.0,0.000163,2]
[323365945,1713931841777,-151.0,0.000163,2]
[323365946,1713931841786,-151.0,0.000163,2]
[323365947,1713931841795,-151.0,0.000163,2]
[323365948,1713931841805,-151.0,0.000163,2]
[323365949,1713931841814,-151.0,0.000163,2]
[323365950,1713931841824,-151.0,0.000163,2]
[323365951,1713931841833,-776.159464,0.000163,2]
[323365952,1713931841842,-776.159464,0.000163,2]
[323365953,1713931841852,-776.159464,0.000163,2]
[323365954,1713931841862,-776.159464,0.000163,2]
[323365955,1713931841871,-776.159464,0.000163,2]
[323365956,1713931841880,-153.0,0.00016301,2]
[323365957,1713931841890,-153.0,0.00016301,2]
[323365958,1713931841901,-217.500188,0.00016336,2]
[323365959,1713931841910,-217.500188,0.00016336,2]
[323365960,1713931841919,-168.921941,0.00016336,2]
[323365961,1713931841928,-168.921941,0.00016336,2]
[323365962,1713931841938,-256.660524,0.00016337,2]
[323365963,1713931841947,-151.0,0.00016337,2]
[323365964,1713931841957,-151.0,0.00016337,2]
[323365965,1713931841966,-151.0,0.00016337,2]
[323365966,1713931841975,-162.170834,0.00016337,2]
[323365967,1713931841985,-162.170834,0.00016337,2]
[323365968,1713931841994,-162.170834,0.00016337,2]
[323365969,1713931842003,-162.170834,0.00016337,2]
[323365970,1713931842014,-162.170834,0.00016337,2]
[323365971,1713931842025,-162.170834,0.00016337,2]
[323365972,1713931842034,-151.0,0.00016337,2]
[323365973,1713931842043,-228.548597,0.00016337,2]
[323365974,1713931842052,-257.826796,0.00016337,2]
[323365975,1713931842063,-151.0,0.00016337,2]
[323365976,1713931842072,-151.0,0.00016337,2]
[323365977,1713931842081,-151.0,0.00016337,2]
[323365978,1713931842092,-151.0,0.00016337,2]
[323365979,1713931842102,-151.0,0.00016337,2]
[323365980,1713931842111,-151.0,0.00016337,2]
[323365981,1713931842120,-505.527411,0.00016337,2]
[323365982,1713931842129,-505.527411,0.00016337,2]
[323365983,1713931842138,-505.527411,0.00016337,2]
[323365984,1713931842149,-505.527411,0.00016337,2]
[323365985,1713931842159,-505.527411,0.00016337,2]
[323365986,1713931842168,-505.527411,0.00016337,2]
[323365987,1713931842179,-505.527411,0.00016337,2]
[323365988,1713931842189,-505.527411,0.00016337,2]
[323365989,1713931842198,-505.527411,0.00016337,2]
[323365990,1713931842207,-505.527411,0.00016337,2]
[323365991,1713931842217,-505.527411,0.00016337,2]
[323365992,1713931842227,-505.527411,0.00016337,2]
[323365993,1713931842236,-151.0,0.00016337,2]
[323365994,1713931842374,-151.0,0.00016337,2]
[323365995,1713931842384,-151.0,0.00016337,2]
[323365996,1713931842394,-151.0,0.00016337,2]
[323365997,1713931842403,-151.0,0.00016337,2]
[323365998,1713931842413,-151.0,0.00016337,2]
[323365999,1713931842422,-266.381912,0.00016337,2]
[323366000,1713931842432,-225.716103,0.00016337,2]
[323366001,1713931842442,-225.716103,0.00016337,2]
[323366002,1713931842452,-225.716103,0.00016337,2]
[323366003,1713931842462,-225.716103,0.00016337,2]
[323366004,1713931842473,-225.716103,0.00016337,2]
[323366005,1713931842482,-225.716103,0.00016337,2]
[323366006,1713931842491,-225.716103,0.00016337,2]
[323366007,1713931842502,-225.716103,0.00016337,2]
[323366008,1713931842511,-225.716103,0.00016337,2]
[323366009,1713931842520,-225.716103,0.00016337,2]
[323366010,1713931842530,-225.716103,0.00016337,2]
[323366011,1713931842540,-225.716103,0.00016337,2]
[323366012,1713931842550,-225.716103,0.00016337,2]
[323366013,1713931842559,-225.716107,0.00016337,2]
[323366014,1713931842568,-502.615419,0.00016337,2]
[323366015,1713931842577,-502.615419,0.00016337,2]
[323366016,1713931842586,-502.615419,0.00016337,2]
[323366017,1713931842595,-502.615419,0.00016337,2]
[323366018,1713931842605,-502.615419,0.00016337,2]
[323366019,1713931842614,-502.615419,0.00016337,2]
[323366020,1713931842623,-502.615419,0.00016337,2]
[323366021,1713931842633,-502.615419,0.00016337,2]
[323366022,1713931842643,-502.615419,0.00016337,2]
[323366023,1713931842654,-502.615419,0.00016337,2]
[323366024,1713931842663,-502.615419,0.00016337,2]
[323366025,1713931842672,-502.615419,0.00016337,2]
[323366026,1713931842681,-502.615419,0.00016337,2]
[323366027,1713931842690,-502.615423,0.00016337,2]
[323366028,1713931842700,-470.192865,0.00016337,2]
[323366029,1713931842709,-470.192865,0.00016337,2]
[323366030,1713931842719,-470.192865,0.00016337,2]
[323366031,1713931842729,-470.192865,0.00016337,2]
[323366032,1713931842739,-470.192865,0.00016337,2]
[323366033,1713931842749,-470.192865,0.00016337,2]
[323366034,1713931842758,-470.192865,0.00016337,2]
[323366035,1713931842767,-470.192865,0.00016337,2]
[323366036,1713931842777,-470.192865,0.00016337,2]
[323366037,1713931842786,-470.192865,0.00016337,2]
[323366038,1713931842795,-470.192865,0.00016337,2]
[323366039,1713931842804,-470.192865,0.00016337,2]
[323366040,1713931842813,-470.192865,0.00016337,2]
[323366041,1713931842823,-470.192865,0.00016337,2]
[323366042,1713931842832,-450.565195,0.00016337,2]
[323366043,1713931842841,-450.565195,0.00016337,2]
[323366044,1713931842851,-450.565195,0.00016337,2]
[323366045,1713931842861,-450.565195,0.00016337,2]
[323366046,1713931842870,-450.565195,0.00016337,2]
[323366047,1713931842879,-450.565195,0.00016337,2]
[323366048,1713931842888,-450.565195,0.00016337,2]
[323366049,1713931842897,-450.565195,0.00016337,2]
[323366050,1713931842906,-450.565195,0.00016337,2]
[323366051,1713931842915,-450.565195,0.00016337,2]
[323366052,1713931842926,-450.565195,0.00016337,2]
[323366053,1713931842937,-450.565195,0.00016337,2]
[323366054,1713931842946,-450.565195,0.00016337,2]
[323366055,1713931842956,-450.565195,0.00016337,2]
[323366056,1713931842966,-151.0,0.00016337,2]
[323366057,1713931842975,-151.0,0.00016337,2]
[323366058,1713931842985,-151.0,0.00016337,2]
[323366059,1713931842994,-151.0,0.00016337,2]
[323366060,1713931843003,-151.0,0.00016337,2]
[323366061,1713931843014,-151.0,0.00016337,2]
[323366062,1713931843025,-151.0,0.00016337,2]
[323366063,1713931843034,-155.855352,0.00016337,2]